[Event "Late-Titled-Tuesday-Blitz-May-14-2024"]
[Site "Chess.com"]
[Date "2024.05.14"]
[Round "10"]
[White "Felix-Rose"]
[Black "howitzer14"]
[Result "0-1"]
[WhiteElo "2323"]
[BlackElo "2999"]
[TimeControl "180+1"]
[EndTime "15:54:09 PDT"]
[Termination "howitzer14 won by resignation"]

1. e4 {[%clk 0:03:00.9]} 1... c5 {[%clk 0:02:52.1]} 2. Nf3 {[%clk 0:03:00.8]}
2... Nc6 {[%clk 0:02:50.3]} 3. d4 {[%clk 0:03:00.9]} 3... cxd4 {[%clk
0:02:51.2]} 4. Nxd4 {[%clk 0:03:01.5]} 4... Nf6 {[%clk 0:02:51.6]} 5. Nc3 {[%clk
0:03:01.7]} 5... d6 {[%clk 0:02:49.2]} 6. Bg5 {[%clk 0:03:00.7]} 6... g6 {[%clk
0:02:48.7]} 7. Bxf6 {[%clk 0:02:55.6]} 7... exf6 {[%clk 0:02:49.6]} 8. Bb5
{[%clk 0:02:49.2]} 8... Bd7 {[%clk 0:02:48.7]} 9. Nxc6 {[%clk 0:02:33.6]} 9...
bxc6 {[%clk 0:02:46.6]} 10. Bc4 {[%clk 0:02:33.6]} 10... Qe7 {[%clk 0:02:18.8]}
11. Qe2 {[%clk 0:02:25.1]} 11... Bg7 {[%clk 0:02:17.3]} 12. O-O-O {[%clk
0:02:24.4]} 12... Rd8 {[%clk 0:02:04.6]} 13. f4 {[%clk 0:02:15]} 13... O-O
{[%clk 0:01:57.5]} 14. Kb1 {[%clk 0:02:09.3]} 14... f5 {[%clk 0:01:54.1]} 15.
exf5 {[%clk 0:02:09.4]} 15... Qxe2 {[%clk 0:01:52.7]} 16. Nxe2 {[%clk
0:02:09.9]} 16... Bxf5 {[%clk 0:01:50.5]} 17. Bd3 {[%clk 0:02:06.5]} 17... Bc8
{[%clk 0:01:43.6]} 18. c4 {[%clk 0:02:00.6]} 18... Rfe8 {[%clk 0:01:42.7]} 19.
Kc2 {[%clk 0:01:58.1]} 19... a5 {[%clk 0:01:42.7]} 20. Nc3 {[%clk 0:01:54.8]}
20... Be6 {[%clk 0:01:36.9]} 21. Rhe1 {[%clk 0:01:52.7]} 21... d5 {[%clk
0:01:23.7]} 22. cxd5 {[%clk 0:01:50.4]} 22... cxd5 {[%clk 0:01:24.6]} 23. Bb5
{[%clk 0:01:21.4]} 23... Rf8 {[%clk 0:01:24]} 24. Kb1 {[%clk 0:01:16]} 24... Rd6
{[%clk 0:01:06.9]} 25. a4 {[%clk 0:01:13]} 25... Rc8 {[%clk 0:01:05.8]} 26. Ne2
{[%clk 0:01:02.9]} 26... d4 {[%clk 0:01:01]} 27. Bd3 {[%clk 0:00:59.6]} 27...
Bd7 {[%clk 0:00:45.6]} 28. Rc1 {[%clk 0:00:44.8]} 28... Rb8 {[%clk 0:00:45]} 29.
Rc5 {[%clk 0:00:27.4]} 29... Rdb6 {[%clk 0:00:44.7]} 30. Rxa5 {[%clk 0:00:23.5]}
30... Rxb2+ {[%clk 0:00:44.1]} 31. Ka1 {[%clk 0:00:23.7]} 31... R2b3 {[%clk
0:00:41.4]} 32. Bb5 {[%clk 0:00:20.7]} 32... d3+ {[%clk 0:00:36.5]} 33. Ka2
{[%clk 0:00:14.8]} 33... Rb2+ {[%clk 0:00:37]} 34. Ka3 {[%clk 0:00:14.7]} 34...
Rxe2 {[%clk 0:00:33.4]} 35. Rxe2 {[%clk 0:00:11.4]} 35... dxe2 {[%clk
0:00:34.3]} 36. Bxe2 {[%clk 0:00:10.8]} 36... Bf8+ {[%clk 0:00:30.4]} 37. Ka2
{[%clk 0:00:10.6]} 37... Be6+ {[%clk 0:00:31.1]} 38. Ka1 {[%clk 0:00:10.1]}
38... Bg7+ {[%clk 0:00:31.7]} 39. Re5 {[%clk 0:00:06.7]} 39... Rb4 {[%clk
0:00:32.6]} 40. Bb5 {[%clk 0:00:05.6]} 40... Rxf4 {[%clk 0:00:32]} 41. Kb1
{[%clk 0:00:05.5]} 41... Bxe5 {[%clk 0:00:32]} 0-1

[Event "Late-Titled-Tuesday-Blitz-May-14-2024"]
[Site "Chess.com"]
[Date "2024.05.14"]
[Round "10"]
[White "Byniolus"]
[Black "SujanaLohani"]
[Result "1-0"]
[WhiteElo "2737"]
[BlackElo "2123"]
[TimeControl "180+1"]
[EndTime "15:54:10 PDT"]
[Termination "Byniolus won by resignation"]

1. g3 {[%clk 0:03:00.9]} 1... d5 {[%clk 0:02:57.3]} 2. d3 {[%clk 0:03:00.6]}
2... e5 {[%clk 0:02:56.2]} 3. e3 {[%clk 0:03:00.9]} 3... c5 {[%clk 0:02:56.4]}
4. b3 {[%clk 0:03:01.4]} 4... Nc6 {[%clk 0:02:56.8]} 5. c3 {[%clk 0:03:01.9]}
5... Nf6 {[%clk 0:02:57]} 6. f3 {[%clk 0:03:02.4]} 6... Bd6 {[%clk 0:02:57.3]}
7. Ne2 {[%clk 0:03:02.3]} 7... O-O {[%clk 0:02:57.4]} 8. a3 {[%clk 0:03:02.7]}
8... e4 {[%clk 0:02:57.7]} 9. dxe4 {[%clk 0:03:00.1]} 9... dxe4 {[%clk
0:02:57.2]} 10. f4 {[%clk 0:03:00.8]} 10... Bg4 {[%clk 0:02:55.3]} 11. Bg2
{[%clk 0:03:01.3]} 11... Bf3 {[%clk 0:02:54.2]} 12. O-O {[%clk 0:03:01.7]} 12...
Bc7 {[%clk 0:02:48.2]} 13. Nd2 {[%clk 0:02:53.6]} 13... Bh5 {[%clk 0:02:43.4]}
14. h3 {[%clk 0:02:21.8]} 14... Qd3 {[%clk 0:02:40.6]} 15. Kf2 {[%clk
0:02:22.2]} 15... Rad8 {[%clk 0:02:34]} 16. Ra2 {[%clk 0:02:05.6]} 16... Nd5
{[%clk 0:02:30.2]} 17. Nxe4 {[%clk 0:01:53]} 17... Qxd1 {[%clk 0:02:18.7]} 18.
Rxd1 {[%clk 0:01:51.9]} 18... Bxe2 {[%clk 0:02:19]} 19. Kxe2 {[%clk 0:01:49.5]}
19... f5 {[%clk 0:02:19.2]} 20. Rxd5 {[%clk 0:01:47.7]} 20... Rxd5 {[%clk
0:02:11.6]} 21. Nf6+ {[%clk 0:01:47.9]} 21... Rxf6 {[%clk 0:02:11.7]} 22. Bxd5+
{[%clk 0:01:48.8]} 22... Kf8 {[%clk 0:02:11.5]} 23. c4 {[%clk 0:01:30.7]} 23...
Rh6 {[%clk 0:02:11.1]} 24. h4 {[%clk 0:01:28.2]} 24... b6 {[%clk 0:02:05.7]} 25.
Bd2 {[%clk 0:01:20]} 25... Ne7 {[%clk 0:02:04.7]} 26. Bf3 {[%clk 0:01:15]} 26...
Rg6 {[%clk 0:02:04.5]} 27. Be1 {[%clk 0:01:11.2]} 27... Ng8 {[%clk 0:01:53.7]}
28. e4 {[%clk 0:01:05.1]} 28... Re6 {[%clk 0:01:48.4]} 29. e5 {[%clk 0:01:03.1]}
29... h6 {[%clk 0:01:45.1]} 30. Rd2 {[%clk 0:00:58.8]} 30... g5 {[%clk
0:01:28.9]} 31. Bf2 {[%clk 0:00:44.9]} 31... Nf6 {[%clk 0:00:58]} 32. hxg5
{[%clk 0:00:28.2]} 32... hxg5 {[%clk 0:00:56.1]} 33. Be3 {[%clk 0:00:26.4]}
33... g4 {[%clk 0:00:52.3]} 34. Bd5 {[%clk 0:00:19.9]} 34... Nxd5 {[%clk
0:00:45.4]} 35. cxd5 {[%clk 0:00:20.8]} 35... Re8 {[%clk 0:00:45.7]} 36. Kd3
{[%clk 0:00:18.5]} 36... Kf7 {[%clk 0:00:41]} 37. Rh2 {[%clk 0:00:17.9]} 37...
Kg7 {[%clk 0:00:36.7]} 38. d6 {[%clk 0:00:15.6]} 38... Bd8 {[%clk 0:00:29.5]}
39. Kc4 {[%clk 0:00:14.9]} 39... Kf7 {[%clk 0:00:25.3]} 40. Kd5 {[%clk
0:00:14.5]} 1-0

[Event "Late-Titled-Tuesday-Blitz-May-14-2024"]
[Site "Chess.com"]
[Date "2024.05.14"]
[Round "10"]
[White "albayo"]
[Black "dealshark"]
[Result "1-0"]
[WhiteElo "2418"]
[BlackElo "2520"]
[TimeControl "180+1"]
[EndTime "15:54:10 PDT"]
[Termination "albayo won by resignation"]

1. e4 {[%clk 0:03:00.9]} 1... c6 {[%clk 0:03:00.2]} 2. Nc3 {[%clk 0:02:59.5]}
2... d5 {[%clk 0:03:01.1]} 3. Nf3 {[%clk 0:02:59.5]} 3... Bg4 {[%clk 0:03:01.5]}
4. h3 {[%clk 0:02:58.5]} 4... Bh5 {[%clk 0:03:02]} 5. exd5 {[%clk 0:02:55.4]}
5... cxd5 {[%clk 0:03:02.9]} 6. g4 {[%clk 0:02:52.1]} 6... Bg6 {[%clk
0:03:02.6]} 7. Bb5+ {[%clk 0:02:52.4]} 7... Nc6 {[%clk 0:03:03.2]} 8. Ne5 {[%clk
0:02:50.9]} 8... Rc8 {[%clk 0:03:03.7]} 9. d4 {[%clk 0:02:46.4]} 9... e6 {[%clk
0:03:03.7]} 10. Qe2 {[%clk 0:02:42.1]} 10... Bd6 {[%clk 0:02:59.1]} 11. h4
{[%clk 0:02:35.1]} 11... Bxe5 {[%clk 0:02:46]} 12. dxe5 {[%clk 0:02:34.7]} 12...
h5 {[%clk 0:02:39.9]} 13. Bd3 {[%clk 0:02:23.7]} 13... Bxd3 {[%clk 0:02:29.2]}
14. cxd3 {[%clk 0:02:19.5]} 14... Nd4 {[%clk 0:02:11]} 15. Qd1 {[%clk
0:02:19.2]} 15... hxg4 {[%clk 0:02:11.1]} 16. Qa4+ {[%clk 0:02:19.1]} 16... Nc6
{[%clk 0:02:05.4]} 17. Qxg4 {[%clk 0:02:18.2]} 17... Nge7 {[%clk 0:02:00.5]} 18.
Qxg7 {[%clk 0:01:51.4]} 18... Rg8 {[%clk 0:01:59.2]} 19. Qf6 {[%clk 0:01:48]}
19... Qb6 {[%clk 0:01:23.1]} 20. h5 {[%clk 0:01:31]} 20... Qd4 {[%clk
0:00:49.5]} 21. Be3 {[%clk 0:01:12.5]} 21... Qxe5 {[%clk 0:00:48.1]} 22. Qxe5
{[%clk 0:01:10.8]} 22... Nxe5 {[%clk 0:00:48.6]} 23. O-O-O {[%clk 0:01:09.6]}
23... Nf5 {[%clk 0:00:42.7]} 24. Bf4 {[%clk 0:00:50.9]} 24... Ng4 {[%clk
0:00:34.5]} 25. Kd2 {[%clk 0:00:45.8]} 25... Nxf2 {[%clk 0:00:33.3]} 26. Rdg1
{[%clk 0:00:46.2]} 26... Nxh1 {[%clk 0:00:33.5]} 27. Rxg8+ {[%clk 0:00:45.7]}
27... Kd7 {[%clk 0:00:30.5]} 28. Rxc8 {[%clk 0:00:44.4]} 28... Kxc8 {[%clk
0:00:29.9]} 29. h6 {[%clk 0:00:42.4]} 29... Ne7 {[%clk 0:00:11.5]} 30. h7 {[%clk
0:00:34]} 30... Ng6 {[%clk 0:00:10.9]} 31. Ke1 {[%clk 0:00:31.9]} 31... f6
{[%clk 0:00:08.8]} 32. Ne2 {[%clk 0:00:29.3]} 32... Kd7 {[%clk 0:00:08.4]} 33.
Bh6 {[%clk 0:00:29]} 33... Ke7 {[%clk 0:00:05.7]} 34. Nf4 {[%clk 0:00:24.3]}
34... Nh8 {[%clk 0:00:03.1]} 35. Bg7 {[%clk 0:00:23.7]} 35... Kf7 {[%clk
0:00:00.3]} 36. Bxh8 {[%clk 0:00:22.7]} 36... Ng3 {[%clk 0:00:01.2]} 37. Bxf6
{[%clk 0:00:22.3]} 1-0

[Event "Late-Titled-Tuesday-Blitz-May-14-2024"]
[Site "Chess.com"]
[Date "2024.05.14"]
[Round "10"]
[White "ChEsper99"]
[Black "noret"]
[Result "1-0"]
[WhiteElo "2247"]
[BlackElo "2124"]
[TimeControl "180+1"]
[EndTime "15:54:12 PDT"]
[Termination "ChEsper99 won on time"]

1. Nf3 {[%clk 0:03:00.9]} 1... Nf6 {[%clk 0:02:56.9]} 2. g3 {[%clk 0:02:59.6]}
2... g6 {[%clk 0:02:57.3]} 3. Bg2 {[%clk 0:02:59.6]} 3... Bg7 {[%clk 0:02:58]}
4. O-O {[%clk 0:02:59.9]} 4... O-O {[%clk 0:02:58.3]} 5. c4 {[%clk 0:02:58.9]}
5... c5 {[%clk 0:02:57.9]} 6. Nc3 {[%clk 0:02:57.9]} 6... Nc6 {[%clk 0:02:53]}
7. d4 {[%clk 0:02:53.4]} 7... cxd4 {[%clk 0:02:47]} 8. Nxd4 {[%clk 0:02:54.3]}
8... d5 {[%clk 0:02:25.5]} 9. Nxc6 {[%clk 0:02:18.8]} 9... bxc6 {[%clk 0:02:25]}
10. cxd5 {[%clk 0:02:19.3]} 10... cxd5 {[%clk 0:02:14.8]} 11. Nxd5 {[%clk
0:02:18.7]} 11... Nxd5 {[%clk 0:02:10.5]} 12. Bxd5 {[%clk 0:02:10.1]} 12... Rb8
{[%clk 0:02:10.2]} 13. Bb3 {[%clk 0:02:07.7]} 13... Qa5 {[%clk 0:01:59]} 14. Bf4
{[%clk 0:02:02.7]} 14... Bh3 {[%clk 0:01:05]} 15. Bxb8 {[%clk 0:01:57.3]} 15...
Bxf1 {[%clk 0:01:05]} 16. Kxf1 {[%clk 0:01:42.4]} 16... Rxb8 {[%clk 0:01:01.5]}
17. Qc2 {[%clk 0:01:29.7]} 17... Qe5 {[%clk 0:00:53.9]} 18. Rd1 {[%clk
0:01:14.1]} 18... h5 {[%clk 0:00:40]} 19. h4 {[%clk 0:01:09.3]} 19... Qf5 {[%clk
0:00:31.9]} 20. Qxf5 {[%clk 0:01:07.3]} 20... gxf5 {[%clk 0:00:31.7]} 21. Rd7
{[%clk 0:01:04.9]} 21... e6 {[%clk 0:00:23.3]} 22. Rxa7 {[%clk 0:00:56.5]} 22...
Bxb2 {[%clk 0:00:23.2]} 23. e3 {[%clk 0:00:56.7]} 23... Be5 {[%clk 0:00:18.5]}
24. Kg2 {[%clk 0:00:51.3]} 24... Kf8 {[%clk 0:00:17.1]} 25. Bd1 {[%clk
0:00:51.3]} 25... Rb2 {[%clk 0:00:13.2]} 26. Bxh5 {[%clk 0:00:50.4]} 26... f6
{[%clk 0:00:08.8]} 27. Bf7 {[%clk 0:00:37.7]} 27... Rb6 {[%clk 0:00:04.8]} 28.
h5 {[%clk 0:00:37.9]} 28... Kg7 {[%clk 0:00:02.8]} 29. Bxe6+ {[%clk 0:00:35.4]}
29... Kh6 {[%clk 0:00:02.9]} 30. Bf7 {[%clk 0:00:29.4]} 30... Kg5 {[%clk
0:00:02.7]} 31. f4+ {[%clk 0:00:27.9]} 31... Kg4 {[%clk 0:00:02.6]} 32. fxe5
{[%clk 0:00:28.1]} 32... Rb2+ {[%clk 0:00:02.8]} 33. Kf1 {[%clk 0:00:27.5]}
33... Kf3 {[%clk 0:00:02.7]} 34. Bd5+ {[%clk 0:00:24]} 34... Kxg3 {[%clk
0:00:00.8]} 35. exf6 {[%clk 0:00:23.8]} 1-0

[Event "Late-Titled-Tuesday-Blitz-May-14-2024"]
[Site "Chess.com"]
[Date "2024.05.14"]
[Round "10"]
[White "Naruto-K"]
[Black "ferrufino64"]
[Result "1-0"]
[WhiteElo "2501"]
[BlackElo "2331"]
[TimeControl "180+1"]
[EndTime "15:54:13 PDT"]
[Termination "Naruto-K won by resignation"]

1. e4 {[%clk 0:02:49.5]} 1... c5 {[%clk 0:02:59]} 2. Nc3 {[%clk 0:02:48.4]} 2...
Nc6 {[%clk 0:02:57.9]} 3. Bb5 {[%clk 0:02:45.8]} 3... Nd4 {[%clk 0:02:57.5]} 4.
Bc4 {[%clk 0:02:44.1]} 4... e6 {[%clk 0:02:56.5]} 5. Nf3 {[%clk 0:02:43.4]} 5...
Ne7 {[%clk 0:02:55.9]} 6. Nxd4 {[%clk 0:02:43.2]} 6... cxd4 {[%clk 0:02:55.8]}
7. Ne2 {[%clk 0:02:43.9]} 7... Nc6 {[%clk 0:02:56]} 8. d3 {[%clk 0:02:39.1]}
8... Be7 {[%clk 0:02:55.4]} 9. O-O {[%clk 0:02:38.8]} 9... O-O {[%clk
0:02:55.7]} 10. a3 {[%clk 0:02:39.1]} 10... d5 {[%clk 0:02:55.5]} 11. exd5
{[%clk 0:02:39.1]} 11... exd5 {[%clk 0:02:55.7]} 12. Ba2 {[%clk 0:02:38.8]}
12... Bg4 {[%clk 0:02:55]} 13. f3 {[%clk 0:02:38]} 13... Bh5 {[%clk 0:02:49.3]}
14. Ng3 {[%clk 0:02:34]} 14... Bg6 {[%clk 0:02:49.2]} 15. Bf4 {[%clk 0:02:34.7]}
15... Rc8 {[%clk 0:02:48.7]} 16. Qd2 {[%clk 0:02:33.7]} 16... Bf6 {[%clk
0:02:48]} 17. Rfe1 {[%clk 0:02:33.1]} 17... a5 {[%clk 0:02:44.1]} 18. Re2 {[%clk
0:02:28.7]} 18... b5 {[%clk 0:02:44.3]} 19. Rae1 {[%clk 0:02:28.3]} 19... b4
{[%clk 0:02:44.8]} 20. a4 {[%clk 0:02:27.1]} 20... Qd7 {[%clk 0:02:40.7]} 21.
Bg5 {[%clk 0:02:19.4]} 21... Bxg5 {[%clk 0:02:15]} 22. Qxg5 {[%clk 0:02:20.3]}
22... Rfd8 {[%clk 0:02:15.6]} 23. h4 {[%clk 0:02:08.9]} 23... h6 {[%clk
0:02:15.6]} 24. Qf4 {[%clk 0:02:08.5]} 24... f6 {[%clk 0:01:11.2]} 25. h5 {[%clk
0:01:53.6]} 25... Bf7 {[%clk 0:01:04.7]} 26. Nf5 {[%clk 0:01:47.7]} 26... Ne5
{[%clk 0:01:04.9]} 27. Nxh6+ {[%clk 0:01:39.5]} 27... gxh6 {[%clk 0:01:04.2]}
28. Qxf6 {[%clk 0:01:39.8]} 28... Nc6 {[%clk 0:00:44]} 29. Qxh6 {[%clk
0:01:36.3]} 29... Qf5 {[%clk 0:00:37.5]} 30. Re6 {[%clk 0:00:44.9]} 30... b3
{[%clk 0:00:25.6]} 31. Bxb3 {[%clk 0:00:41.1]} 31... Qxh5 {[%clk 0:00:21.1]} 32.
Rxc6 {[%clk 0:00:40.1]} 32... Rxc6 {[%clk 0:00:12.7]} 33. Qxc6 {[%clk
0:00:39.3]} 33... Qh4 {[%clk 0:00:13]} 34. Re2 {[%clk 0:00:34.7]} 34... Qf4
{[%clk 0:00:08.6]} 35. Qb6 {[%clk 0:00:21.4]} 35... Qc1+ {[%clk 0:00:08.8]} 36.
Kf2 {[%clk 0:00:21.8]} 36... Qg5 {[%clk 0:00:09]} 37. Qxd4 {[%clk 0:00:20.8]}
37... Rf8 {[%clk 0:00:07.4]} 38. Qe5 {[%clk 0:00:19.8]} 38... Qg4 {[%clk
0:00:08]} 39. fxg4 {[%clk 0:00:19.4]} 1-0

[Event "Late-Titled-Tuesday-Blitz-May-14-2024"]
[Site "Chess.com"]
[Date "2024.05.14"]
[Round "10"]
[White "Gangster-accountant01"]
[Black "Mbneu"]
[Result "1-0"]
[WhiteElo "2589"]
[BlackElo "2280"]
[TimeControl "180+1"]
[EndTime "15:54:19 PDT"]
[Termination "Gangster-accountant01 won on time"]

1. c4 {[%clk 0:02:59.5]} 1... Nf6 {[%clk 0:02:59]} 2. d3 {[%clk 0:03:00.4]} 2...
e6 {[%clk 0:02:54.5]} 3. e4 {[%clk 0:02:58.5]} 3... d5 {[%clk 0:02:54.4]} 4.
cxd5 {[%clk 0:02:58.4]} 4... exd5 {[%clk 0:02:54.1]} 5. e5 {[%clk 0:02:58.7]}
5... Nfd7 {[%clk 0:02:52.4]} 6. f4 {[%clk 0:02:56.7]} 6... Nc5 {[%clk
0:02:49.5]} 7. d4 {[%clk 0:02:56.3]} 7... Ne4 {[%clk 0:02:48.9]} 8. Be3 {[%clk
0:02:50.6]} 8... c5 {[%clk 0:02:47.2]} 9. Nd2 {[%clk 0:02:48.8]} 9... Bf5 {[%clk
0:02:44.5]} 10. Nxe4 {[%clk 0:02:48.2]} 10... Bxe4 {[%clk 0:02:43.8]} 11. Nf3
{[%clk 0:02:48]} 11... Nc6 {[%clk 0:02:41.2]} 12. Be2 {[%clk 0:02:46]} 12...
Qa5+ {[%clk 0:02:37.2]} 13. Bd2 {[%clk 0:02:44.2]} 13... Qb6 {[%clk 0:02:36.2]}
14. Bc3 {[%clk 0:02:26]} 14... cxd4 {[%clk 0:02:33.2]} 15. Nxd4 {[%clk
0:02:25.8]} 15... Bc5 {[%clk 0:02:06.2]} 16. Nxc6 {[%clk 0:02:21.1]} 16... bxc6
{[%clk 0:02:01.3]} 17. Bf3 {[%clk 0:02:19.1]} 17... Bf2+ {[%clk 0:01:40.3]} 18.
Kf1 {[%clk 0:02:18.4]} 18... Be3 {[%clk 0:01:38.5]} 19. Bxe4 {[%clk 0:02:17.7]}
19... dxe4 {[%clk 0:01:37.9]} 20. g3 {[%clk 0:02:17.9]} 20... Rd8 {[%clk
0:01:34.5]} 21. Qe2 {[%clk 0:02:16.4]} 21... Rd3 {[%clk 0:01:32.8]} 22. Kg2
{[%clk 0:02:15.9]} 22... c5 {[%clk 0:01:25.3]} 23. Rhd1 {[%clk 0:02:04.3]} 23...
c4 {[%clk 0:01:25]} 24. Qg4 {[%clk 0:02:00.3]} 24... O-O {[%clk 0:00:55.9]} 25.
e6 {[%clk 0:01:58.9]} 25... f6 {[%clk 0:00:55.9]} 26. e7 {[%clk 0:01:57.3]}
26... Re8 {[%clk 0:00:53]} 27. Rxd3 {[%clk 0:01:53.3]} 27... exd3 {[%clk
0:00:51.8]} 28. Qd7 {[%clk 0:01:53.4]} 28... Kf7 {[%clk 0:00:46.1]} 29. Qd5+
{[%clk 0:01:46.1]} 29... Kxe7 {[%clk 0:00:40.5]} 30. Qxc4 {[%clk 0:01:45.8]}
30... Qb7+ {[%clk 0:00:27.8]} 31. Kh3 {[%clk 0:01:38.1]} 31... Qd7+ {[%clk
0:00:21.9]} 32. g4 {[%clk 0:01:35.5]} 32... Rc8 {[%clk 0:00:19.5]} 33. Bb4+
{[%clk 0:01:32]} 33... Kd8 {[%clk 0:00:18.6]} 34. Qg8+ {[%clk 0:01:29.2]} 34...
Kc7 {[%clk 0:00:17.9]} 35. Qb3 {[%clk 0:01:28.6]} 35... d2 {[%clk 0:00:14.3]}
36. Rd1 {[%clk 0:01:25.2]} 36... Re8 {[%clk 0:00:12.5]} 37. Ba5+ {[%clk
0:01:17.5]} 37... Kc8 {[%clk 0:00:12.6]} 38. Bxd2 {[%clk 0:01:09.3]} 38... Bxd2
{[%clk 0:00:11.1]} 39. Qc2+ {[%clk 0:01:09.1]} 39... Kb8 {[%clk 0:00:10.7]} 40.
Qxd2 {[%clk 0:01:08.1]} 40... Qxd2 {[%clk 0:00:08.7]} 41. Rxd2 {[%clk 0:01:09]}
41... Re3+ {[%clk 0:00:08.3]} 42. Kg2 {[%clk 0:01:09.4]} 42... Kc7 {[%clk
0:00:06.7]} 43. h3 {[%clk 0:01:09.4]} 43... Kc6 {[%clk 0:00:06.8]} 44. f5 {[%clk
0:01:09.9]} 44... a5 {[%clk 0:00:05.8]} 45. b3 {[%clk 0:01:09.9]} 45... Rc3
{[%clk 0:00:02.6]} 46. Re2 {[%clk 0:01:08.2]} 46... Kd6 {[%clk 0:00:02]} 47.
Rd2+ {[%clk 0:01:07.8]} 47... Ke5 {[%clk 0:00:02.2]} 48. Re2+ {[%clk 0:01:04.4]}
48... Kf4 {[%clk 0:00:02.2]} 49. Kh2 {[%clk 0:01:04.4]} 49... g6 {[%clk
0:00:01.3]} 50. fxg6 {[%clk 0:01:04.4]} 50... hxg6 {[%clk 0:00:01.4]} 51. Rf2+
{[%clk 0:01:05]} 51... Kg5 {[%clk 0:00:01.2]} 52. Kg2 {[%clk 0:01:01.6]} 52...
Kh4 {[%clk 0:00:00.4]} 53. Rxf6 {[%clk 0:00:58.1]} 1-0

[Event "Late-Titled-Tuesday-Blitz-May-14-2024"]
[Site "Chess.com"]
[Date "2024.05.14"]
[Round "10"]
[White "Nf3c5"]
[Black "GMthekingindian"]
[Result "1-0"]
[WhiteElo "2554"]
[BlackElo "2330"]
[TimeControl "180+1"]
[EndTime "15:54:19 PDT"]
[Termination "Nf3c5 won by resignation"]

1. d4 {[%clk 0:02:55.3]} 1... d5 {[%clk 0:02:59.5]} 2. Nf3 {[%clk 0:02:52.9]}
2... Nf6 {[%clk 0:02:59]} 3. Bg5 {[%clk 0:02:53.3]} 3... h6 {[%clk 0:02:31.7]}
4. Bxf6 {[%clk 0:02:50.5]} 4... exf6 {[%clk 0:02:30.1]} 5. e3 {[%clk 0:02:51]}
5... c6 {[%clk 0:02:30]} 6. c4 {[%clk 0:02:49.8]} 6... dxc4 {[%clk 0:02:22.1]}
7. Bxc4 {[%clk 0:02:48.5]} 7... Nd7 {[%clk 0:02:22]} 8. Nc3 {[%clk 0:02:47.1]}
8... Bd6 {[%clk 0:02:21.9]} 9. O-O {[%clk 0:02:46.8]} 9... O-O {[%clk
0:02:21.8]} 10. Rb1 {[%clk 0:02:44.2]} 10... f5 {[%clk 0:02:20.6]} 11. b4 {[%clk
0:02:42.6]} 11... a6 {[%clk 0:02:20.9]} 12. a4 {[%clk 0:02:42]} 12... b5 {[%clk
0:01:51]} 13. Bd3 {[%clk 0:02:37.8]} 13... Nf6 {[%clk 0:01:48.5]} 14. Qc2 {[%clk
0:02:35.1]} 14... g6 {[%clk 0:01:47.6]} 15. Ne2 {[%clk 0:02:20.1]} 15... Bb7
{[%clk 0:01:42.3]} 16. Ne5 {[%clk 0:02:14.7]} 16... Rc8 {[%clk 0:01:41.4]} 17.
Rfc1 {[%clk 0:02:11.1]} 17... Qe7 {[%clk 0:01:40.6]} 18. Qb2 {[%clk 0:02:03.1]}
18... Nd5 {[%clk 0:01:39.3]} 19. Rc5 {[%clk 0:01:57.6]} 19... Bxc5 {[%clk
0:01:33.9]} 20. bxc5 {[%clk 0:01:54.9]} 20... Kg7 {[%clk 0:01:21.6]} 21. g3
{[%clk 0:01:35.9]} 21... f6 {[%clk 0:01:21.5]} 22. Nf3 {[%clk 0:01:35.9]} 22...
Rb8 {[%clk 0:01:20.1]} 23. a5 {[%clk 0:01:33.1]} 23... Bc8 {[%clk 0:01:20]} 24.
Qd2 {[%clk 0:01:31.5]} 24... Qc7 {[%clk 0:01:17.2]} 25. h4 {[%clk 0:01:31]}
25... Re8 {[%clk 0:01:15.9]} 26. Nf4 {[%clk 0:01:27.9]} 26... Be6 {[%clk
0:00:42.4]} 27. Nxe6+ {[%clk 0:01:01.9]} 27... Rxe6 {[%clk 0:00:42.3]} 28. h5
{[%clk 0:01:02.6]} 28... Nxe3 {[%clk 0:00:17.5]} 29. hxg6 {[%clk 0:00:50.8]}
29... Kxg6 {[%clk 0:00:10.6]} 30. Nh4+ {[%clk 0:00:50.6]} 30... Kf7 {[%clk
0:00:08.7]} 31. Re1 {[%clk 0:00:37.9]} 31... f4 {[%clk 0:00:07.9]} 32. fxe3
{[%clk 0:00:32.2]} 32... Rg8 {[%clk 0:00:04.9]} 33. Nf5 {[%clk 0:00:30.5]} 33...
Kf8 {[%clk 0:00:02.4]} 34. exf4 {[%clk 0:00:26.3]} 34... Rxe1+ {[%clk
0:00:00.5]} 35. Qxe1 {[%clk 0:00:27.2]} 35... Qg7 {[%clk 0:00:00.6]} 36. Nxg7
{[%clk 0:00:26.2]} 36... Rxg7 {[%clk 0:00:00.4]} 37. Kf2 {[%clk 0:00:24.9]}
37... Re7 {[%clk 0:00:01.3]} 38. Qd2 {[%clk 0:00:24.7]} 38... Rd7 {[%clk
0:00:01.3]} 39. Bf5 {[%clk 0:00:24.6]} 39... Rd5 {[%clk 0:00:01.8]} 40. Be6
{[%clk 0:00:24.4]} 40... Re5 {[%clk 0:00:02.7]} 41. fxe5 {[%clk 0:00:24.4]}
41... Ke7 {[%clk 0:00:03.2]} 42. Bf5 {[%clk 0:00:22.5]} 1-0